fUSD/lending_fUSD_20250219
["ID","MTS","AMOUNT","RATE_DAILY","PERIOD"]
[353665174,1739986241094,-1471.53,0.00011698,2]
[353665175,1739986241103,-1524.59,0.00011698,2]
[353665176,1739986241112,-725.12,0.00011698,2]
[353665178,1739986241122,-1651.7,0.00011698,2]
[353665180,1739986241131,-2152.29,0.00011698,2]
[353665182,1739986241140,-1552.62,0.00011698,2]
[353665184,1739986241149,-500.0,0.00011698,2]
[353665186,1739986241158,-1962.68,0.00011698,2]
[353665187,1739986241168,-500.0,0.00011698,2]
[353665190,1739986241178,-755.78,0.00011698,2]
[353665191,1739986241187,-1963.99,0.00011698,2]
[353665193,1739986241196,-2632.01,0.00011698,2]
[353665195,1739986241206,-500.0,0.00011698,2]
[353665197,1739986241215,-1670.81,0.00011698,2]
[353665199,1739986241225,-1131.87,0.00011698,2]
[353665201,1739986241235,-1750.59,0.00011698,2]
[353665203,1739986241244,-840.45,0.00011698,2]
[353665205,1739986241253,-1832.34,0.00011698,2]
[353665207,1739986241262,-2518.5,0.00011698,2]
[353665209,1739986241272,-1567.58,0.00011698,2]
[353665211,1739986241281,-1043.77,0.00011698,2]
[353665213,1739986241290,-594.76048086,0.00011698,2]
[353665215,1739986241299,-845.34,0.00011698,2]
[353665217,1739986241311,-594.93,0.00011698,2]
[353665219,1739986241321,-1439.34,0.00011698,2]
[353665221,1739986241330,-767.34,0.00011698,2]
[353665223,1739986241340,-1022.53,0.00011698,2]
[353665226,1739986241349,-160.77450589,0.0001175,2]
[353665227,1739986241359,-1280.1,0.0001178,2]
[353665229,1739986241368,-1471.53,0.0001178,2]
[353665231,1739986241377,-1524.59,0.0001178,2]
[353665233,1739986241387,-725.12,0.0001178,2]
[353665235,1739986241396,-1651.7,0.0001178,2]
[353665237,1739986241406,-2152.29,0.0001178,2]
[353665239,1739986241415,-1552.62,0.0001178,2]
[353665241,1739986241425,-500.0,0.0001178,2]
[353665243,1739986241434,-1962.68,0.0001178,2]
[353665246,1739986241444,-500.0,0.0001178,2]
[353665248,1739986241454,-755.78,0.0001178,2]
[353665250,1739986241464,-1963.99,0.0001178,2]
[353665252,1739986241473,-2632.01,0.0001178,2]
[353665254,1739986241483,-500.0,0.0001178,2]
[353665256,1739986241492,-1670.81,0.0001178,2]
[353665258,1739986241502,-1131.87,0.0001178,2]
[353665260,1739986241512,-1750.59,0.0001178,2]
[353665262,1739986241522,-840.45,0.0001178,2]
[353665264,1739986241531,-1832.34,0.0001178,2]
[353665266,1739986241540,-2518.5,0.0001178,2]
[353665268,1739986241549,-1567.58,0.0001178,2]
[353665270,1739986241559,-1043.77,0.0001178,2]
[353665272,1739986241569,-845.34,0.0001178,2]
[353665274,1739986241578,-594.93,0.0001178,2]
[353665276,1739986241586,-1439.34,0.0001178,2]
[353665278,1739986241596,-767.34,0.0001178,2]
[353665280,1739986241605,-1022.53,0.0001178,2]
[353665282,1739986241615,-1280.1,0.00011863,2]
[353665284,1739986241624,-1471.53,0.00011863,2]
[353665286,1739986241634,-1524.59,0.00011863,2]
[353665288,1739986241643,-725.12,0.00011863,2]
[353665290,1739986241654,-1651.7,0.00011863,2]
[353665292,1739986241663,-2152.29,0.00011863,2]
[353665294,1739986241674,-1552.62,0.00011863,2]
[353665296,1739986241683,-500.0,0.00011863,2]
[353665298,1739986241693,-1962.68,0.00011863,2]
[353665300,1739986241702,-500.0,0.00011863,2]
[353665302,1739986241713,-755.78,0.00011863,2]
[353665304,1739986241723,-1963.99,0.00011863,2]
[353665306,1739986241733,-2632.01,0.00011863,2]
[353665308,1739986241743,-500.0,0.00011863,2]
[353665310,1739986241753,-1670.81,0.00011863,2]
[353665312,1739986241763,-1131.87,0.00011863,2]
[353665314,1739986241774,-1750.59,0.00011863,2]
[353665316,1739986241784,-840.45,0.00011863,2]
[353665318,1739986241794,-1832.34,0.00011863,2]
[353665320,1739986241803,-2518.5,0.00011863,2]
[353665322,1739986241813,-1567.58,0.00011863,2]
[353665324,1739986241827,-1043.77,0.00011863,2]
[353665327,1739986241839,-845.34,0.00011863,2]
[353665329,1739986241852,-594.93,0.00011863,2]
[353665331,1739986241861,-1439.34,0.00011863,2]
[353665333,1739986241871,-767.34,0.00011863,2]
[353665335,1739986241881,-1022.53,0.00011863,2]
[353665337,1739986241891,-1280.1,0.00011945,2]
[353665339,1739986241900,-1471.53,0.00011945,2]
[353665341,1739986241910,-1524.59,0.00011945,2]
[353665343,1739986241920,-725.12,0.00011945,2]
[353665345,1739986241929,-1651.7,0.00011945,2]
[353665347,1739986241939,-2152.29,0.00011945,2]
[353665349,1739986241949,-1552.62,0.00011945,2]
[353665351,1739986241959,-500.0,0.00011945,2]
[353665353,1739986241968,-1962.68,0.00011945,2]
[353665355,1739986241977,-500.0,0.00011945,2]
[353665356,1739986241986,-755.78,0.00011945,2]
[353665358,1739986241995,-1963.99,0.00011945,2]
[353665360,1739986242004,-2632.01,0.00011945,2]
[353665362,1739986242015,-500.0,0.00011945,2]
[353665365,1739986242026,-1670.81,0.00011945,2]
[353665367,1739986242036,-1131.87,0.00011945,2]
[353665369,1739986242046,-1750.59,0.00011945,2]
[353665371,1739986242057,-840.45,0.00011945,2]
[353665372,1739986242068,-1832.34,0.00011945,2]
[353665375,1739986242078,-2518.5,0.00011945,2]
[353665377,1739986242088,-1567.58,0.00011945,2]
[353665378,1739986242097,-1043.77,0.00011945,2]
[353665380,1739986242106,-845.34,0.00011945,2]
[353665382,1739986242117,-594.93,0.00011945,2]
[353665385,1739986242126,-1439.34,0.00011945,2]
[353665386,1739986242136,-153.625135,0.00011945,2]
[353665388,1739986242145,-767.34,0.00011945,2]
[353665390,1739986242154,-1022.53,0.00011945,2]
[353665392,1739986242164,-300.15510416,0.00011989,2]
[353665394,1739986242173,-233.26,0.00011998,2]
[353665396,1739986242183,-1000.0,0.00012016,2]
[353665398,1739986242193,-1280.1,0.00012027,2]
[353665400,1739986242202,-1471.53,0.00012027,2]
[353665402,1739986242211,-1524.59,0.00012027,2]
[353665404,1739986242220,-725.12,0.00012027,2]
[353665406,1739986242230,-1651.7,0.00012027,2]
[353665408,1739986242239,-2152.29,0.00012027,2]
[353665410,1739986242248,-1552.62,0.00012027,2]
[353665412,1739986242257,-500.0,0.00012027,2]
[353665414,1739986242266,-1962.68,0.00012027,2]
[353665416,1739986242275,-500.0,0.00012027,2]
[353665418,1739986242285,-755.78,0.00012027,2]
[353665420,1739986242294,-1963.99,0.00012027,2]
[353665422,1739986242303,-2632.01,0.00012027,2]
[353665424,1739986242312,-500.0,0.00012027,2]
[353665426,1739986242323,-1670.81,0.00012027,2]
[353665428,1739986242332,-1131.87,0.00012027,2]
[353665430,1739986242342,-1750.59,0.00012027,2]
[353665432,1739986242351,-840.45,0.00012027,2]
[353665434,1739986242360,-1832.34,0.00012027,2]
[353665436,1739986242369,-2518.5,0.00012027,2]
[353665438,1739986242378,-1567.58,0.00012027,2]
[353665440,1739986242387,-1043.77,0.00012027,2]
[353665442,1739986242396,-845.34,0.00012027,2]
[353665444,1739986242405,-594.93,0.00012027,2]
[353665446,1739986242415,-1439.34,0.00012027,2]
[353665448,1739986242424,-767.34,0.00012027,2]
[353665450,1739986242435,-1022.53,0.00012027,2]
[353665452,1739986242445,-1280.1,0.00012109,2]
[353665454,1739986242454,-1471.53,0.00012109,2]
[353665456,1739986242463,-1524.59,0.00012109,2]
[353665458,1739986242472,-725.12,0.00012109,2]
[353665459,1739986242482,-1651.7,0.00012109,2]
[353665460,1739986242491,-2152.29,0.00012109,2]
[353665461,1739986242500,-1552.62,0.00012109,2]
[353665462,1739986242510,-500.0,0.00012109,2]
[353665463,1739986242519,-1962.68,0.00012109,2]
[353665464,1739986242528,-500.0,0.00012109,2]
[353665465,1739986242538,-755.78,0.00012109,2]
[353665467,1739986242547,-1963.99,0.00012109,2]
[353665469,1739986242556,-2632.01,0.00012109,2]
[353665471,1739986242565,-500.0,0.00012109,2]
[353665473,1739986242575,-1670.81,0.00012109,2]
[353665475,1739986242584,-1131.87,0.00012109,2]
[353665477,1739986242593,-1750.59,0.00012109,2]
[353665479,1739986242602,-840.45,0.00012109,2]
[353665481,1739986242611,-1832.34,0.00012109,2]
[353665483,1739986242621,-2518.5,0.00012109,2]
[353665485,1739986242630,-1567.58,0.00012109,2]
[353665487,1739986242639,-1043.77,0.00012109,2]
[353665490,1739986242648,-845.34,0.00012109,2]
[353665493,1739986242658,-594.93,0.00012109,2]
[353665496,1739986242667,-1439.34,0.00012109,2]
[353665499,1739986242676,-767.34,0.00012109,2]
[353665502,1739986242685,-1022.53,0.00012109,2]
[353665505,1739986242694,-213.25,0.00012121,2]
[353665508,1739986242703,-1048.68,0.0001214,2]
[353665511,1739986242712,-250.0,0.0001217,2]
[353665513,1739986242722,-866.55,0.00012172,2]
[353665515,1739986242732,-1280.1,0.00012191,2]
[353665517,1739986242741,-1471.53,0.00012191,2]
[353665519,1739986242750,-1524.59,0.00012191,2]
[353665521,1739986242759,-725.12,0.00012191,2]
[353665523,1739986242769,-1651.7,0.00012191,2]
[353665525,1739986242778,-2152.29,0.00012191,2]
[353665527,1739986242788,-1552.62,0.00012191,2]
[353665529,1739986242797,-500.0,0.00012191,2]
[353665531,1739986242806,-1962.68,0.00012191,2]
[353665533,1739986242815,-500.0,0.00012191,2]
[353665535,1739986242825,-755.78,0.00012191,2]
[353665537,1739986242834,-1963.99,0.00012191,2]
[353665539,1739986242846,-2632.01,0.00012191,2]
[353665541,1739986242855,-500.0,0.00012191,2]
[353665543,1739986242865,-1670.81,0.00012191,2]
[353665545,1739986242875,-1131.87,0.00012191,2]
[353665547,1739986242886,-1750.59,0.00012191,2]
[353665549,1739986242895,-840.45,0.00012191,2]
[353665551,1739986242905,-1832.34,0.00012191,2]
[353665553,1739986242914,-2518.5,0.00012191,2]
[353665555,1739986242926,-1567.58,0.00012191,2]
[353665557,1739986242935,-1043.77,0.00012191,2]
[353665559,1739986242944,-845.34,0.00012191,2]
[353665561,1739986242954,-594.93,0.00012191,2]
[353665563,1739986242964,-1439.34,0.00012191,2]
[353665565,1739986242973,-767.34,0.00012191,2]
[353665567,1739986242983,-1022.53,0.00012191,2]
[353665569,1739986242992,-3926.33,0.00012243,2]
[353665571,1739986243001,-150.0,0.00012255,2]
[353665573,1739986243011,-150.0,0.00012255,2]
[353665575,1739986243020,-150.0,0.00012255,2]
[353665577,1739986243030,-1280.1,0.00012273,2]
[353665579,1739986243039,-1471.53,0.00012273,2]
[353665581,1739986243048,-1524.59,0.00012273,2]
[353665583,1739986243058,-725.12,0.00012273,2]
[353665585,1739986243067,-1651.7,0.00012273,2]
[353665587,1739986243077,-2152.29,0.00012273,2]
[353665589,1739986243087,-1552.62,0.00012273,2]
[353665591,1739986243096,-153.41518013,0.00012273,2]
[353665593,1739986243105,-1962.68,0.00012273,2]
[353665595,1739986243115,-633.05,0.00012273,2]
[353665597,1739986243125,-755.78,0.00012273,2]
[353665599,1739986243134,-1963.99,0.00012273,2]
[353665601,1739986243142,-2632.01,0.00012273,2]
[353665603,1739986243152,-500.0,0.00012273,2]
[353665605,1739986243161,-1670.81,0.00012273,2]
[353665607,1739986243171,-1131.87,0.00012273,2]
[353665609,1739986243180,-1750.59,0.00012273,2]
[353665611,1739986243189,-840.45,0.00012273,2]
[353665613,1739986243198,-1832.34,0.00012273,2]
[353665615,1739986243207,-2518.5,0.00012273,2]
[353665617,1739986243216,-1567.58,0.00012273,2]
[353665619,1739986243225,-1043.77,0.00012273,2]
[353665621,1739986243235,-845.34,0.00012273,2]
[353665623,1739986243244,-594.93,0.00012273,2]
[353665625,1739986243254,-1439.34,0.00012273,2]
[353665627,1739986243263,-767.34,0.00012273,2]
[353665629,1739986243272,-1022.53,0.00012273,2]
[353665631,1739986243282,-2491.0,0.000123,3]
[353665633,1739986243292,-300.15510416,0.00012311,2]
[353665635,1739986243301,-1280.1,0.00012356,2]
[353665637,1739986243311,-1471.53,0.00012356,2]
[353665639,1739986243321,-1524.59,0.00012356,2]
[353665641,1739986243331,-725.12,0.00012356,2]
[353665643,1739986243341,-1651.7,0.00012356,2]
[353665645,1739986243350,-2152.29,0.00012356,2]
[353665647,1739986243360,-1552.62,0.00012356,2]
[353665649,1739986243371,-1962.68,0.00012356,2]
[353665651,1739986243380,-755.78,0.00012356,2]
[353665653,1739986243389,-1963.99,0.00012356,2]
[353665655,1739986243399,-2632.01,0.00012356,2]
[353665657,1739986243407,-500.0,0.00012356,2]
[353665659,1739986243416,-1670.81,0.00012356,2]
[353665661,1739986243427,-1131.87,0.00012356,2]
[353665663,1739986243438,-1750.59,0.00012356,2]
[353665665,1739986243447,-840.45,0.00012356,2]
[353665667,1739986243457,-1832.34,0.00012356,2]
[353665669,1739986243466,-2518.5,0.00012356,2]
[353665671,1739986243475,-1567.58,0.00012356,2]
[353665674,1739986243485,-1043.77,0.00012356,2]
[353665675,1739986243494,-845.34,0.00012356,2]
[353665678,1739986243504,-594.93,0.00012356,2]
[353665679,1739986243512,-1439.34,0.00012356,2]
[353665682,1739986243522,-767.34,0.00012356,2]
[353665684,1739986243531,-1022.53,0.00012356,2]
[353665685,1739986243540,-1280.1,0.00012438,2]
[353665687,1739986243549,-1471.53,0.00012438,2]
[353665690,1739986243559,-1524.59,0.00012438,2]
[353665692,1739986243568,-725.12,0.00012438,2]
[353665693,1739986243578,-1651.7,0.00012438,2]
[353665696,1739986243587,-2152.29,0.00012438,2]
[353665698,1739986243596,-1552.62,0.00012438,2]
[353665699,1739986243605,-1962.68,0.00012438,2]
[353665701,1739986243614,-755.78,0.00012438,2]
[353665704,1739986243624,-1963.99,0.00012438,2]
[353665706,1739986243633,-2632.01,0.00012438,2]
[353665708,1739986243642,-500.0,0.00012438,2]
[353665709,1739986243651,-1670.81,0.00012438,2]
[353665711,1739986243661,-1131.87,0.00012438,2]
[353665713,1739986243670,-1750.59,0.00012438,2]
[353665715,1739986243679,-840.45,0.00012438,2]
[353665718,1739986243689,-1832.34,0.00012438,2]
[353665720,1739986243699,-2518.5,0.00012438,2]
[353665722,1739986243709,-1567.58,0.00012438,2]
[353665724,1739986243718,-1043.77,0.00012438,2]
[353665726,1739986243728,-845.34,0.00012438,2]
[353665728,1739986243737,-594.93,0.00012438,2]
[353665730,1739986243746,-1439.34,0.00012438,2]
[353665732,1739986243756,-767.34,0.00012438,2]
[353665733,1739986243765,-1022.53,0.00012438,2]
[353665734,1739986243775,-1280.1,0.0001252,2]
[353665735,1739986243784,-1471.53,0.0001252,2]
[353665736,1739986243794,-1524.59,0.0001252,2]
[353665737,1739986243803,-725.12,0.0001252,2]
[353665738,1739986243813,-1651.7,0.0001252,2]
[353665739,1739986243823,-2152.29,0.0001252,2]
[353665741,1739986243833,-1552.62,0.0001252,2]
[353665743,1739986243845,-1962.68,0.0001252,2]
[353665745,1739986243854,-755.78,0.0001252,2]
[353665747,1739986243863,-1963.99,0.0001252,2]
[353665749,1739986243872,-2632.01,0.0001252,2]
[353665751,1739986243883,-500.0,0.0001252,2]
[353665753,1739986243892,-1670.81,0.0001252,2]
[353665755,1739986243901,-1131.87,0.0001252,2]
[353665757,1739986243910,-1750.59,0.0001252,2]
[353665759,1739986243920,-840.45,0.0001252,2]
[353665761,1739986243930,-1832.34,0.0001252,2]
[353665763,1739986243939,-2518.5,0.0001252,2]
[353665765,1739986243948,-1567.58,0.0001252,2]
[353665767,1739986243958,-1043.77,0.0001252,2]
[353665769,1739986243967,-845.34,0.0001252,2]
[353665771,1739986243976,-594.93,0.0001252,2]
[353665773,1739986243986,-1439.34,0.0001252,2]
[353665775,1739986243995,-767.34,0.0001252,2]
[353665777,1739986244004,-1022.53,0.0001252,2]
[353665779,1739986244013,-1280.1,0.00012602,2]
[353665781,1739986244022,-1471.53,0.00012602,2]
[353665783,1739986244032,-1524.59,0.00012602,2]
[353665785,1739986244042,-725.12,0.00012602,2]
[353665787,1739986244051,-1651.7,0.00012602,2]
[353665789,1739986244061,-2152.29,0.00012602,2]
[353665791,1739986244072,-1552.62,0.00012602,2]
[353665793,1739986244081,-1962.68,0.00012602,2]
[353665795,1739986244091,-755.78,0.00012602,2]
[353665797,1739986244100,-1963.99,0.00012602,2]
[353665799,1739986244110,-2632.01,0.00012602,2]
[353665801,1739986244119,-359.30690576,0.00012602,2]
[353665803,1739986244128,-1670.81,0.00012602,2]
[353665805,1739986244138,-1131.87,0.00012602,2]
[353665807,1739986244148,-1750.59,0.00012602,2]
[353665809,1739986244157,-840.45,0.00012602,2]
[353665811,1739986244167,-1832.34,0.00012602,2]
[353665813,1739986244176,-2518.5,0.00012602,2]
[353665815,1739986244185,-1567.58,0.00012602,2]
[353665817,1739986244194,-1043.77,0.00012602,2]
[353665819,1739986244203,-845.34,0.00012602,2]
[353665821,1739986244213,-594.93,0.00012602,2]
[353665823,1739986244223,-1439.34,0.00012602,2]
[353665825,1739986244232,-767.34,0.00012602,2]
[353665827,1739986244242,-1022.53,0.00012602,2]
[353665829,1739986244253,-300.15510416,0.00012633,2]
[353665831,1739986244267,-1280.1,0.00012684,2]
[353665833,1739986244277,-1471.53,0.00012684,2]
[353665835,1739986244287,-1524.59,0.00012684,2]
[353665837,1739986244296,-725.12,0.00012684,2]
[353665839,1739986244305,-1651.7,0.00012684,2]
[353665841,1739986244314,-2152.29,0.00012684,2]
[353665843,1739986244324,-1552.62,0.00012684,2]
[353665845,1739986244333,-1962.68,0.00012684,2]
[353665847,1739986244343,-755.78,0.00012684,2]
[353665849,1739986244352,-1963.99,0.00012684,2]
[353665851,1739986244362,-2632.01,0.00012684,2]
[353665853,1739986244371,-1670.81,0.00012684,2]
[353665855,1739986244380,-1131.87,0.00012684,2]
[353665857,1739986244389,-1750.59,0.00012684,2]
[353665859,1739986244398,-840.45,0.00012684,2]
[353665861,1739986244408,-1832.34,0.00012684,2]
[353665863,1739986244417,-2518.5,0.00012684,2]
[353665865,1739986244429,-1567.58,0.00012684,2]
[353665867,1739986244439,-1043.77,0.00012684,2]
[353665869,1739986244448,-845.34,0.00012684,2]
[353665871,1739986244458,-594.93,0.00012684,2]
[353665873,1739986244467,-1439.34,0.00012684,2]
[353665875,1739986244476,-767.34,0.00012684,2]
[353665877,1739986244486,-1022.53,0.00012684,2]
[353665879,1739986244496,-5552.0,0.000127,5]
[353665881,1739986244506,-150.0,0.00012709,2]
[353665883,1739986244517,-1280.1,0.00012767,2]
[353665885,1739986244528,-1471.53,0.00012767,2]
[353665888,1739986244538,-1524.59,0.00012767,2]
[353665890,1739986244547,-725.12,0.00012767,2]
[353665892,1739986244556,-1651.7,0.00012767,2]
[353665893,1739986244566,-2152.29,0.00012767,2]
[353665896,1739986244577,-1552.62,0.00012767,2]
[353665898,1739986244586,-1962.68,0.00012767,2]
[353665900,1739986244596,-755.78,0.00012767,2]
[353665901,1739986244605,-1963.99,0.00012767,2]
[353665903,1739986244614,-2632.01,0.00012767,2]
[353665906,1739986244624,-1670.81,0.00012767,2]
[353665908,1739986244633,-1131.87,0.00012767,2]
[353665910,1739986244643,-1750.59,0.00012767,2]
[353665912,1739986244653,-840.45,0.00012767,2]
[353665914,1739986244662,-1832.34,0.00012767,2]
[353665916,1739986244671,-2518.5,0.00012767,2]
[353665918,1739986244680,-1567.58,0.00012767,2]
[353665920,1739986244690,-1043.77,0.00012767,2]
[353665922,1739986244699,-845.34,0.00012767,2]
[353665924,1739986244708,-594.93,0.00012767,2]
[353665926,1739986244718,-1439.34,0.00012767,2]
[353665928,1739986244727,-767.34,0.00012767,2]
[353665930,1739986244736,-1022.53,0.00012767,2]
[353665931,1739986244746,-150.0,0.00012822,2]
[353665933,1739986244755,-1973.94,0.00012822,2]
[353665936,1739986244764,-986.19,0.00012822,2]
[353665938,1739986244774,-1280.16245449,0.00012849,2]
[353665940,1739986244783,-1471.62399854,0.00012849,2]
[353665941,1739986244792,-1524.59820311,0.00012849,2]
[353665943,1739986244802,-725.2031276,0.00012849,2]
[353665946,1739986244811,-1651.82375018,0.00012849,2]
[353665948,1739986244820,-2152.36878215,0.00012849,2]
[353665950,1739986244830,-1552.69545119,0.00012849,2]
[353665952,1739986244842,-1962.82336145,0.00012849,2]
[353665954,1739986244852,-755.85075275,0.00012849,2]
[353665956,1739986244862,-1964.01514397,0.00012849,2]
[353665958,1739986244872,-2632.15901539,0.00012849,2]
[353665960,1739986244881,-1671.02574698,0.00012849,2]
[353665976,1739986245090,-1131.87789893,0.00012849,2]
[353665978,1739986245100,-1750.78421712,0.00012849,2]
[353665980,1739986245110,-840.68189434,0.00012849,2]
[353665982,1739986245119,-1832.40373543,0.00012849,2]
[353665984,1739986245129,-2518.51453041,0.00012849,2]
[353665986,1739986245138,-1567.7683914,0.00012849,2]
[353665988,1739986245148,-1043.8421176,0.00012849,2]
[353665990,1739986245158,-845.52161887,0.00012849,2]
[353665992,1739986245167,-595.11,0.00012849,2]
[353665994,1739986245176,-1439.43,0.00012849,2]
[353665996,1739986245186,-767.45018183,0.00012849,2]
[353665998,1739986245195,-1022.76763386,0.00012849,2]
[353666000,1739986245204,-150.0,0.00012936,2]
[353666002,1739986245213,-507.52,0.00012946,2]
[353666004,1739986245222,-805.5158,0.00012946,2]
[353666006,1739986245232,-3362.7289,0.00012946,2]
[353666008,1739986245241,-494.76,0.00012946,2]
[353666010,1739986245251,-503.02,0.00012946,2]
[353666012,1739986245260,-498.88,0.00012946,2]
[353666014,1739986245269,-503.72,0.00012946,2]
[353666016,1739986245279,-1318.4057,0.00012947,2]
[353666018,1739986245288,-300.15510416,0.00012956,2]
[353666020,1739986245298,-600.0,0.00013,2]
[353666022,1739986245307,-500.0,0.00013012,2]
[353666024,1739986245317,-604.77294542,0.00013044,2]
[353666026,1739986245327,-1289.6623,0.00013044,2]
[353666028,1739986245337,-5000.0,0.00013093,2]
[353666030,1739986245346,-604.77294542,0.00013106,2]
[353666032,1739986245356,-12354.96523484,0.0001311,2]
[353666034,1739986245366,-508.96,0.00013111,2]
[353666036,1739986245375,-647.51,0.00013111,2]
[353666038,1739986245385,-606.54,0.00013111,2]
[353666040,1739986245395,-786.54,0.00013111,2]
[353666042,1739986245404,-500.0,0.00013111,2]
[353666044,1739986245414,-500.0,0.00013111,2]
[353666046,1739986245424,-500.0,0.00013111,2]
[353666048,1739986245433,-696.95,0.00013111,2]
[353666050,1739986245443,-500.0,0.00013111,2]
[353666052,1739986245454,-500.0,0.00013111,2]
[353666054,1739986245469,-535.33,0.00013111,2]
[353666056,1739986245479,-820.32,0.00013111,2]
[353666058,1739986245489,-916.74,0.00013111,2]
[353666060,1739986245500,-505.35,0.00013111,2]
[353666062,1739986245509,-500.0,0.00013111,2]
[353666064,1739986245518,-729.66,0.00013111,2]
[353666066,1739986245528,-618.67,0.00013111,2]
[353666068,1739986245537,-592.69,0.00013111,2]
[353666070,1739986245546,-532.35,0.00013111,2]
[353666071,1739986245555,-516.92,0.00013111,2]
[353666073,1739986245565,-672.94,0.00013111,2]
[353666075,1739986245575,-637.64,0.00013111,2]
[353666077,1739986245585,-1014.34,0.00013111,2]
[353666079,1739986245595,-500.0,0.00013111,2]
[353666081,1739986245604,-543.27,0.00013111,2]
[353666083,1739986245614,-500.0,0.00013111,2]
[353666085,1739986245624,-751.08,0.00013111,2]
[353666088,1739986245634,-1053.81,0.00013111,2]
[353666090,1739986245643,-958.9,0.00013111,2]
[353666092,1739986245653,-795.65,0.00013111,2]
[353666094,1739986245663,-1177.81,0.00013111,2]
[353666095,1739986245673,-500.0,0.00013111,2]
[353666098,1739986245682,-823.42,0.00013111,2]
[353666100,1739986245693,-985.06,0.00013111,2]
[353666103,1739986245703,-500.0,0.00013111,2]
[353666106,1739986245713,-500.0,0.00013111,2]
[353666109,1739986245723,-836.04,0.00013111,2]
[353666111,1739986245732,-915.65,0.00013111,2]
[353666114,1739986245742,-637.78,0.00013111,2]
[353666117,1739986245751,-577.11,0.00013111,2]
[353666120,1739986245762,-981.91,0.00013111,2]
[353666122,1739986245772,-500.0,0.00013111,2]
[353666125,1739986245780,-676.28,0.00013111,2]
[353666127,1739986245790,-572.18,0.00013111,2]
[353666130,1739986245799,-666.81,0.00013111,2]
[353666133,1739986245809,-655.31,0.00013111,2]
[353666136,1739986245818,-776.92,0.00013111,2]
[353666138,1739986245829,-968.62,0.00013111,2]
[353666141,1739986245840,-808.9,0.00013111,2]
[353666144,1739986245852,-1080.21,0.00013111,2]
[353666146,1739986245862,-196.64323399,0.00013111,2]
[353666148,1739986245872,-500.0,0.00013111,2]
[353666150,1739986245883,-644.93,0.00013111,2]
[353666152,1739986245893,-874.74,0.00013111,2]
[353666154,1739986245903,-500.0,0.00013111,2]
[353666156,1739986245913,-500.0,0.00013111,2]
[353666158,1739986245924,-614.51,0.00013111,2]
[353666160,1739986245934,-500.0,0.00013111,2]
[353666162,1739986245943,-967.65,0.00013111,2]
[353666164,1739986245953,-1156.38,0.00013111,2]
[353666166,1739986245964,-500.0,0.00013111,2]
[353666168,1739986245973,-1109.83,0.00013111,2]
[353666170,1739986245983,-1044.05,0.00013111,2]
[353666171,1739986245992,-575.22,0.00013111,2]
[353666174,1739986246002,-546.68,0.00013111,2]
[353666175,1739986246012,-500.0,0.00013111,2]
[353666178,1739986246022,-500.0,0.00013111,2]
[353666180,1739986246033,-500.0,0.00013111,2]
[353666182,1739986246043,-611.41,0.00013111,2]
[353666183,1739986246052,-710.65,0.00013111,2]
[353666185,1739986246062,-956.21,0.00013111,2]
[353666187,1739986246073,-699.41,0.00013111,2]
[353666189,1739986246083,-604.01,0.00013111,2]
[353666191,1739986246094,-844.76,0.00013111,2]